fUST/lending_fUST_20250702
["ID","MTS","AMOUNT","RATE_DAILY","PERIOD"]
[368999065,1751429449149,-460.0,0.00017717,2]
[368999066,1751429449159,-473.57240175,0.00017717,2]
[368999067,1751429449168,-460.0,0.00017717,2]
[368999068,1751429449177,-460.0,0.00017717,2]
[368999069,1751429449267,-460.0,0.00017717,2]
[368999070,1751429449277,-460.0,0.00017717,2]
[368999071,1751429449287,-460.0,0.00017872,2]
[368999072,1751429449297,-1004.239911,0.00017872,2]
[368999073,1751429449307,-470.10525248,0.00017872,2]
[368999074,1751429449317,-460.0,0.00017872,2]
[368999075,1751429449326,-460.0,0.00017872,2]
[368999076,1751429449336,-460.0,0.00017872,2]
[368999077,1751429449346,-460.0,0.00017891,2]
[368999078,1751429449355,-460.0,0.00017891,2]
[368999079,1751429449364,-636.07,0.00017891,2]
[368999080,1751429449374,-792.04,0.00017891,2]
[368999081,1751429449384,-460.0,0.00017891,2]
[368999082,1751429449393,-460.0,0.00017891,2]
[368999083,1751429449403,-460.0,0.00017891,2]
[368999084,1751429449412,-460.0,0.00017891,2]
[368999085,1751429449422,-460.0,0.00017891,2]
[368999086,1751429449431,-460.0,0.00017891,2]
[368999087,1751429449440,-460.0,0.00017891,2]
[368999088,1751429449450,-637.91,0.00017891,2]
[368999089,1751429449459,-313.15163902,0.00017892,2]
[368999090,1751429449469,-460.0,0.00017892,2]
[368999091,1751429449478,-485.05695505,0.00017892,2]
[368999092,1751429449488,-340.90466998,0.00017892,2]
[368999093,1751429449497,-1601.06,0.00017892,2]
[368999094,1751429449507,-460.0,0.00017892,2]
[368999095,1751429449516,-460.0,0.00017892,2]
[368999096,1751429449526,-494.2,0.00017892,2]
[368999097,1751429449535,-460.0,0.00017892,2]
[368999098,1751429449545,-460.0,0.00017892,2]
[368999099,1751429449555,-460.0,0.00017892,2]
[368999100,1751429449564,-485.33,0.00017892,2]
[368999101,1751429449574,-460.0,0.00017892,2]
[368999102,1751429449584,-460.0,0.00017892,2]
[368999103,1751429449594,-460.0,0.00017892,2]
[368999104,1751429449603,-460.0,0.00017892,2]
[368999105,1751429449613,-460.0,0.00017893,2]
[368999106,1751429449622,-460.0,0.00017893,2]
[368999107,1751429449632,-460.0,0.00017893,2]
[368999108,1751429449642,-460.0,0.00017893,2]
[368999109,1751429449650,-460.0,0.00017893,2]
[368999110,1751429449660,-460.0,0.00017893,2]
[368999111,1751429449669,-460.0,0.00017893,2]
[368999112,1751429449678,-460.0,0.00017893,2]
[368999113,1751429449688,-749.69,0.00017893,2]
[368999114,1751429449697,-460.0,0.00017893,2]
[368999115,1751429449705,-460.0,0.00017893,2]
[368999116,1751429449714,-460.0,0.00017893,2]
[368999117,1751429449723,-460.0,0.00017893,2]
[368999118,1751429449732,-460.0,0.00017893,2]
[368999119,1751429449742,-460.0,0.00017893,2]
[368999120,1751429449751,-460.0,0.00017893,2]
[368999121,1751429449760,-460.0,0.00017893,2]
[368999122,1751429449769,-460.0,0.00017893,2]
[368999123,1751429449779,-460.0,0.00017893,2]
[368999124,1751429449788,-460.0,0.00017893,2]
[368999125,1751429449797,-460.0,0.00017893,2]
[368999126,1751429449806,-460.0,0.00017894,2]
[368999127,1751429449816,-486.75,0.00017894,2]
[368999128,1751429449825,-1295.38,0.00017894,2]
[368999129,1751429449834,-1459.66,0.00017894,2]
[368999130,1751429449843,-460.0,0.00017894,2]
[368999131,1751429449852,-460.0,0.00017894,2]
[368999132,1751429449861,-460.0,0.00017894,2]
[368999133,1751429449870,-590.97,0.00017894,2]
[368999134,1751429449879,-460.0,0.00017894,2]
[368999135,1751429449890,-555.64511576,0.00017968,2]
[368999136,1751429449900,-1000.0,0.00017968,2]
[368999137,1751429449909,-500.0,0.00017968,2]
[368999138,1751429449918,-335.26,0.00017989,2]
[368999139,1751429449927,-460.0,0.00017989,2]
[368999140,1751429449937,-460.0,0.00017989,2]
[368999141,1751429449946,-460.0,0.00017989,2]
[368999142,1751429449955,-522.74,0.00017989,2]
[368999143,1751429449966,-460.0,0.00017989,2]
[368999144,1751429449976,-460.0,0.00017989,2]
[368999145,1751429449985,-460.0,0.00017989,2]
[368999146,1751429449994,-460.0,0.00017989,2]
[368999147,1751429450003,-460.0,0.00017989,2]
[368999148,1751429450013,-460.0,0.00017989,2]
[368999149,1751429450022,-460.0,0.00017989,2]
[368999150,1751429450031,-460.0,0.00017989,2]
[368999151,1751429450041,-460.0,0.00017989,2]
[368999152,1751429450051,-460.0,0.00017991,2]
[368999153,1751429450060,-460.0,0.00017991,2]
[368999154,1751429450069,-460.0,0.00017991,2]
[368999155,1751429450079,-230.49,0.00017991,2]
[368999156,1751429450087,-460.0,0.00017991,2]
[368999157,1751429450097,-460.0,0.00017991,2]
[368999158,1751429450106,-460.0,0.00017991,2]
[368999159,1751429450115,-460.0,0.00017991,2]
[368999160,1751429450125,-151.0,0.00018,2]
[368999161,1751429450134,-1942.10806925,0.00018,2]
[368999162,1751429450144,-1942.10806907,0.00018,2]
[368999163,1751429450153,-1942.10806907,0.00018,2]
[368999164,1751429450163,-1942.10806907,0.00018,2]
[368999165,1751429450172,-1942.10806907,0.00018141,2]
[368999166,1751429450182,-460.0,0.00018146,2]
[368999167,1751429450191,-460.0,0.00018146,2]
[368999168,1751429450201,-569.48101943,0.00018146,2]
[368999169,1751429450211,-460.0,0.00018146,2]
[368999170,1751429450220,-1600.27589521,0.00018149,2]
[368999171,1751429450229,-460.0,0.00018165,2]
[368999172,1751429450239,-460.0,0.00018165,2]
[368999173,1751429450249,-636.07,0.00018165,2]
[368999174,1751429450258,-792.04,0.00018165,2]
[368999175,1751429450268,-460.0,0.00018165,2]
[368999176,1751429450277,-460.0,0.00018165,2]
[368999177,1751429450286,-196.04967083,0.00018165,2]
[368999178,1751429450296,-460.0,0.00018165,2]
[368999179,1751429450305,-460.0,0.00018165,2]
[368999180,1751429450315,-460.0,0.00018165,2]
[368999181,1751429450324,-460.0,0.00018165,2]
[368999182,1751429450334,-637.91,0.00018165,2]
[368999183,1751429450343,-460.0,0.00018166,2]
[368999184,1751429450353,-1601.06,0.00018166,2]
[368999185,1751429450363,-150.16796441,0.00018166,2]
[368999186,1751429450372,-460.0,0.00018166,2]
[368999187,1751429450381,-460.0,0.00018166,2]
[368999188,1751429450390,-591.05315351,0.00018166,2]
[368999189,1751429450400,-485.33,0.00018166,2]
[368999190,1751429450410,-460.0,0.00018166,2]
[368999191,1751429450419,-460.0,0.00018166,2]
[368999192,1751429450428,-460.0,0.00018166,2]
[368999193,1751429450438,-460.0,0.00018166,2]
[368999194,1751429450519,-460.0,0.00018167,2]
[368999195,1751429450529,-460.0,0.00018167,2]
[368999196,1751429450539,-460.0,0.00018167,2]
[368999197,1751429450548,-460.0,0.00018167,2]
[368999198,1751429450558,-460.0,0.00018167,2]
[368999199,1751429450567,-460.0,0.00018167,2]
[368999200,1751429450576,-460.0,0.00018167,2]
[368999201,1751429450586,-460.0,0.00018167,2]
[368999202,1751429450596,-749.69,0.00018167,2]
[368999203,1751429450605,-460.0,0.00018167,2]
[368999204,1751429450614,-460.0,0.00018167,2]
[368999205,1751429450623,-460.0,0.00018167,2]
[368999206,1751429450633,-460.0,0.00018167,2]
[368999207,1751429450642,-460.0,0.00018167,2]
[368999208,1751429450651,-460.0,0.00018167,2]
[368999209,1751429450661,-460.0,0.00018167,2]
[368999210,1751429450670,-460.0,0.00018167,2]
[368999211,1751429450679,-460.0,0.00018167,2]
[368999212,1751429450688,-460.0,0.00018167,2]
[368999213,1751429450698,-252.65632949,0.00018167,2]
[368999214,1751429450707,-460.0,0.00018167,2]
[368999215,1751429450716,-551.63096001,0.00018168,2]
[368999216,1751429450726,-486.75,0.00018168,2]
[368999217,1751429450735,-1295.38,0.00018168,2]
[368999218,1751429450744,-1459.66,0.00018168,2]
[368999219,1751429450753,-460.0,0.00018168,2]
[368999220,1751429450762,-460.0,0.00018168,2]
[368999221,1751429450772,-460.0,0.00018168,2]
[368999222,1751429450781,-590.97,0.00018168,2]
[368999223,1751429450790,-460.0,0.00018168,2]
[368999224,1751429450799,-503.76738109,0.00018168,2]
[368999225,1751429450809,-460.0,0.00018263,2]
[368999226,1751429450818,-460.0,0.00018263,2]
[368999227,1751429450827,-460.0,0.00018263,2]
[368999228,1751429450838,-522.74,0.00018263,2]
[368999229,1751429450847,-460.0,0.00018263,2]
[368999230,1751429450857,-248.91,0.00018263,2]
[368999231,1751429450866,-460.0,0.00018263,2]
[368999232,1751429450875,-460.0,0.00018263,2]
[368999233,1751429450885,-460.0,0.00018263,2]
[368999234,1751429450899,-307.46449672,0.00018263,2]
[368999235,1751429450908,-476.14,0.00018263,2]
[368999236,1751429450918,-460.0,0.00018265,2]
[368999237,1751429450927,-460.0,0.00018265,2]
[368999238,1751429450938,-460.0,0.00018265,2]
[368999239,1751429450947,-465.26194399,0.00018265,2]
[368999240,1751429450956,-460.0,0.00018265,2]
[368999241,1751429450966,-460.0,0.0001842,2]
[368999242,1751429450976,-460.0,0.0001842,2]
[368999243,1751429450985,-460.0,0.0001842,2]
[368999244,1751429450995,-460.0,0.00018439,2]
[368999245,1751429451004,-460.0,0.00018439,2]
[368999246,1751429451014,-636.07,0.00018439,2]
[368999247,1751429451023,-792.04,0.00018439,2]
[368999248,1751429451032,-460.0,0.00018439,2]
[368999249,1751429451042,-460.0,0.00018439,2]
[368999250,1751429451052,-460.0,0.00018439,2]
[368999251,1751429451061,-443.74539633,0.00018439,2]
[368999252,1751429451071,-460.0,0.00018439,2]
[368999253,1751429451080,-642.0,0.00018439,2]
[368999254,1751429451090,-460.0,0.00018439,2]
[368999255,1751429451099,-637.91,0.00018439,2]
[368999256,1751429451109,-460.0,0.0001844,2]
[368999257,1751429451118,-1601.06,0.0001844,2]
[368999258,1751429451128,-460.0,0.0001844,2]
[368999259,1751429451137,-460.0,0.0001844,2]
[368999260,1751429451147,-485.33,0.0001844,2]
[368999261,1751429451156,-460.0,0.0001844,2]
[368999262,1751429451166,-460.0,0.0001844,2]
[368999263,1751429451175,-460.0,0.0001844,2]
[368999264,1751429451184,-460.0,0.00018441,2]
[368999265,1751429451193,-460.0,0.00018441,2]
[368999266,1751429451202,-460.0,0.00018441,2]
[368999267,1751429451212,-460.0,0.00018441,2]
[368999268,1751429451222,-460.0,0.00018441,2]
[368999269,1751429451231,-460.0,0.00018441,2]
[368999270,1751429451240,-460.0,0.00018441,2]
[368999271,1751429451250,-460.0,0.00018441,2]
[368999272,1751429451259,-749.69,0.00018441,2]
[368999273,1751429451269,-460.0,0.00018441,2]
[368999274,1751429451278,-460.0,0.00018441,2]
[368999275,1751429451287,-460.0,0.00018441,2]
[368999276,1751429451297,-460.0,0.00018441,2]
[368999277,1751429451307,-460.0,0.00018441,2]
[368999278,1751429451316,-460.0,0.00018441,2]
[368999279,1751429451325,-460.0,0.00018441,2]
[368999280,1751429451334,-460.0,0.00018441,2]
[368999281,1751429451345,-198.88409279,0.00018441,2]
[368999282,1751429451354,-460.0,0.00018441,2]
[368999283,1751429451364,-486.75,0.00018442,2]
[368999284,1751429451373,-1295.38,0.00018442,2]
[368999285,1751429451382,-1459.66,0.00018442,2]
[368999286,1751429451391,-460.0,0.00018442,2]
[368999287,1751429451401,-460.0,0.00018442,2]
[368999288,1751429451410,-460.0,0.00018442,2]
[368999289,1751429451419,-590.97,0.00018442,2]
[368999290,1751429451428,-460.0,0.00018442,2]
[368999291,1751429451438,-1942.10806907,0.00018452,2]
[368999292,1751429451447,-460.0,0.00018537,2]
[368999293,1751429451456,-460.0,0.00018537,2]
[368999294,1751429451466,-460.0,0.00018537,2]
[368999295,1751429451475,-522.74,0.00018537,2]
[368999296,1751429451485,-335.83062207,0.00018537,2]
[368999297,1751429451494,-460.0,0.00018537,2]
[368999298,1751429451503,-460.0,0.00018539,2]
[368999299,1751429451513,-205.377939,0.00018542,2]
[368999300,1751429451522,-205.377939,0.00018542,2]
[368999301,1751429451531,-151.0,0.00018542,2]
[368999302,1751429451541,-151.656345,0.00018542,2]
[368999303,1751429451551,-460.0,0.00018694,2]
[368999304,1751429451561,-211.6603477,0.00018694,2]
[368999305,1751429451571,-460.0,0.00018694,2]
[368999306,1751429451581,-460.0,0.00018713,2]
[368999307,1751429451590,-636.07,0.00018713,2]
[368999308,1751429451669,-792.04,0.00018713,2]
[368999309,1751429451679,-518.79,0.00018713,2]
[368999310,1751429451688,-460.0,0.00018713,2]
[368999311,1751429451698,-460.0,0.00018713,2]
[368999312,1751429451707,-460.0,0.00018713,2]
[368999313,1751429451716,-460.0,0.00018713,2]
[368999314,1751429451726,-637.91,0.00018713,2]
[368999315,1751429451735,-284.50404704,0.00018714,2]
[368999316,1751429451745,-1601.06,0.00018714,2]
[368999317,1751429451754,-460.0,0.00018714,2]
[368999318,1751429451764,-485.33,0.00018714,2]
[368999319,1751429451774,-460.0,0.00018714,2]
[368999320,1751429451783,-460.0,0.00018714,2]
[368999321,1751429451793,-460.0,0.00018715,2]
[368999322,1751429451802,-320.62476692,0.00018715,2]
[368999323,1751429451811,-606.16,0.00018715,2]
[368999324,1751429451820,-460.0,0.00018715,2]
[368999325,1751429451830,-460.0,0.00018715,2]
[368999326,1751429451839,-460.0,0.00018715,2]
[368999327,1751429451849,-460.0,0.00018715,2]
[368999328,1751429451858,-460.0,0.00018715,2]
[368999329,1751429451867,-749.69,0.00018715,2]
[368999330,1751429451877,-460.0,0.00018715,2]
[368999331,1751429451889,-460.0,0.00018715,2]
[368999332,1751429451900,-460.0,0.00018715,2]
[368999333,1751429451910,-460.0,0.00018715,2]
[368999334,1751429451919,-460.0,0.00018715,2]
[368999335,1751429451929,-460.0,0.00018715,2]
[368999336,1751429451940,-460.0,0.00018715,2]
[368999337,1751429451950,-460.0,0.00018715,2]
[368999338,1751429451959,-486.75,0.00018716,2]
[368999339,1751429451970,-1295.38,0.00018716,2]
[368999340,1751429451979,-1459.66,0.00018716,2]
[368999341,1751429451989,-460.0,0.00018716,2]
[368999342,1751429451999,-460.0,0.00018716,2]
[368999343,1751429452008,-460.0,0.00018716,2]
[368999344,1751429452018,-590.97,0.00018716,2]
[368999345,1751429452028,-460.0,0.00018716,2]
[368999346,1751429452038,-1942.10806907,0.00018762,2]
[368999347,1751429452047,-460.0,0.00018811,2]
[368999348,1751429452057,-537.82458879,0.00018811,2]
[368999349,1751429452067,-571.85599478,0.00018811,2]
[368999350,1751429452076,-522.74,0.00018811,2]
[368999351,1751429452086,-460.0,0.00018811,2]
[368999352,1751429452095,-3197.90797372,0.000189,2]
[368999353,1751429452104,-255.15218675,0.00018968,2]
[368999354,1751429452114,-460.0,0.00018968,2]
[368999355,1751429452123,-636.07,0.00018987,2]
[368999356,1751429452132,-792.04,0.00018987,2]
[368999357,1751429452142,-460.0,0.00018987,2]
[368999358,1751429452151,-170.23493009,0.00018987,2]
[368999359,1751429452160,-460.0,0.00018987,2]
[368999360,1751429452170,-460.0,0.00018987,2]
[368999361,1751429452180,-637.91,0.00018987,2]
[368999362,1751429452189,-1601.06,0.00018988,2]
[368999363,1751429452198,-485.33,0.00018988,2]
[368999364,1751429452208,-460.0,0.00018988,2]
[368999365,1751429452217,-521.75,0.00018988,2]
[368999366,1751429452226,-557.41,0.00018989,2]
[368999367,1751429452236,-460.0,0.00018989,2]
[368999368,1751429452246,-460.0,0.00018989,2]
[368999369,1751429452255,-515.53,0.00018989,2]
[368999370,1751429452265,-749.69,0.00018989,2]
[368999371,1751429452274,-460.0,0.00018989,2]
[368999372,1751429452283,-460.0,0.00018989,2]
[368999373,1751429452293,-460.0,0.00018989,2]
[368999374,1751429452302,-460.0,0.00018989,2]
[368999375,1751429452312,-460.0,0.00018989,2]
[368999376,1751429452322,-460.0,0.00018989,2]
[368999377,1751429452331,-460.0,0.00018989,2]
[368999378,1751429452341,-460.0,0.00018989,2]
[368999379,1751429452350,-486.75,0.0001899,2]
[368999380,1751429452359,-1295.38,0.0001899,2]
[368999381,1751429452370,-1459.66,0.0001899,2]
[368999382,1751429452380,-460.0,0.0001899,2]
[368999383,1751429452389,-460.0,0.0001899,2]
[368999384,1751429452399,-460.0,0.0001899,2]
[368999385,1751429452409,-590.97,0.0001899,2]
[368999386,1751429452418,-12573.65100011,0.0001903,2]
[368999387,1751429452428,-215.04179405,0.0001903,2]
[368999388,1751429452437,-160.0,0.0001903,2]
[368999389,1751429452447,-160.0,0.0001903,2]
[368999390,1751429452457,-230.34465076,0.0001903,2]
[368999391,1751429452466,-847.65867985,0.0001903,2]
[368999392,1751429452476,-837.27862799,0.0001903,2]
[368999393,1751429452486,-213.90888375,0.0001903,2]
[368999394,1751429452495,-160.0,0.0001903,2]
[368999395,1751429452505,-160.0,0.0001903,2]
[368999396,1751429452515,-160.0,0.0001903,2]
[368999397,1751429452524,-160.0,0.00019032,2]
[368999398,1751429452534,-52644.80058903,0.0001907,2]
[368999399,1751429452544,-1942.10806907,0.00019072,2]
[368999400,1751429452553,-341.28550224,0.00019073,2]
[368999401,1751429452563,-381.21193227,0.00019077,2]
[368999402,1751429452573,-241.96733854,0.00019085,2]
[368999403,1751429452583,-522.74,0.00019085,2]
[368999404,1751429452593,-460.0,0.00019085,2]
[368999405,1751429452603,-151.0,0.000191,2]
[368999406,1751429452613,-205.377939,0.00019178,2]
[368999407,1751429452623,-205.377939,0.00019178,2]
[368999408,1751429452633,-151.266379,0.00019178,2]
[368999409,1751429452643,-151.0,0.00019178,2]
[368999410,1751429452656,-151.86000267,0.00019178,2]
[368999411,1751429452667,-151.0,0.00019178,2]
[368999412,1751429452679,-152.6526536,0.00019178,2]
[368999413,1751429452763,-151.0,0.00019178,2]
[368999414,1751429452779,-500.0,0.00019178,2]
[368999415,1751429452789,-500.0,0.00019178,2]
[368999416,1751429452798,-500.0,0.00019178,2]
[368999417,1751429452807,-500.0,0.00019178,2]
[368999418,1751429452818,-500.0,0.00019178,2]
[368999419,1751429452827,-500.0,0.00019178,2]
[368999420,1751429452836,-151.0,0.00019178,2]
[368999421,1751429452846,-500.0,0.00019178,2]
[368999422,1751429452856,-151.0,0.00019178,2]
[368999423,1751429452866,-151.0,0.00019178,2]
[368999424,1751429452875,-500.0,0.00019178,2]
[368999425,1751429452887,-151.0,0.00019178,2]
[368999426,1751429452900,-154.25677098,0.00019178,2]
[368999427,1751429452911,-151.0,0.00019178,2]
[368999428,1751429452920,-154.5342084,0.00019178,2]
[368999429,1751429452930,-259.65232444,0.00019178,2]
[368999430,1751429452940,-153.48649332,0.00019178,2]
[368999431,1751429452950,-500.0,0.00019178,2]
[368999432,1751429452963,-151.0,0.00019178,2]
[368999433,1751429452975,-151.0,0.00019178,2]
[368999434,1751429452985,-157.60977656,0.00019178,2]
[368999435,1751429452994,-55096.8133402,0.00019178,2]
[368999436,1751429453004,-233.701952,0.00019178,2]
[368999437,1751429453013,-155.71994329,0.00019205,2]
[368999438,1751429453022,-156.91729795,0.00019205,2]
[368999439,1751429453031,-151.0,0.00019205,2]
[368999440,1751429453040,-500.0,0.00019205,2]
[368999441,1751429453050,-500.0,0.00019205,2]
[368999442,1751429453060,-500.0,0.00019205,2]
[368999443,1751429453070,-500.0,0.00019205,2]
[368999444,1751429453079,-500.0,0.00019205,2]
[368999445,1751429453089,-500.0,0.00019205,2]
[368999446,1751429453099,-151.0,0.00019205,2]
[368999447,1751429453108,-500.0,0.00019205,2]
[368999448,1751429453117,-151.0,0.00019205,2]
[368999449,1751429453126,-151.0,0.00019205,2]
[368999450,1751429453136,-500.0,0.00019205,2]
[368999451,1751429453145,-151.0,0.00019205,2]
[368999452,1751429453156,-151.0,0.00019205,2]
[368999453,1751429453165,-500.0,0.00019205,2]
[368999454,1751429453175,-159.83810181,0.00019205,2]
[368999455,1751429453184,-151.0,0.00019233,2]
[368999456,1751429453194,-500.0,0.00019233,2]
[368999457,1751429453203,-500.0,0.00019233,2]
[368999458,1751429453213,-500.0,0.00019233,2]
[368999459,1751429453224,-500.0,0.00019233,2]
[368999460,1751429453234,-500.0,0.00019233,2]
[368999461,1751429453243,-500.0,0.00019233,2]
[368999462,1751429453260,-152.21730572,0.00019233,2]
[368999463,1751429453281,-500.0,0.00019233,2]
[368999464,1751429453298,-151.0,0.00019233,2]
[368999465,1751429453318,-151.0,0.00019233,2]
[368999466,1751429453338,-500.0,0.00019233,2]
[368999467,1751429453356,-202.65901361,0.00019233,2]
[368999468,1751429453375,-294.10141575,0.00019233,2]
[368999469,1751429453393,-168.84122403,0.00019233,2]
[368999470,1751429453408,-460.0,0.00019242,2]
[368999471,1751429453425,-151.64010181,0.0001926,2]
[368999472,1751429453446,-500.0,0.0001926,2]
[368999473,1751429453467,-500.0,0.0001926,2]
[368999474,1751429453481,-153.10982746,0.0001926,2]
[368999475,1751429453517,-500.0,0.0001926,2]
[368999476,1751429453539,-500.0,0.0001926,2]
[368999477,1751429453566,-500.0,0.0001926,2]
[368999478,1751429453580,-500.0,0.0001926,2]
[368999479,1751429453602,-194.55225551,0.0001926,2]
[368999480,1751429453623,-151.0,0.0001926,2]
[368999481,1751429453643,-500.0,0.0001926,2]
[368999482,1751429453661,-636.07,0.00019261,2]
[368999483,1751429453678,-792.04,0.00019261,2]
[368999484,1751429453695,-460.0,0.00019261,2]
[368999485,1751429453711,-399.93822844,0.00019261,2]
[368999486,1751429453729,-460.0,0.00019261,2]
[368999487,1751429453758,-637.91,0.00019261,2]
[368999488,1751429453781,-1601.06,0.00019262,2]
[368999489,1751429453798,-485.33,0.00019262,2]
[368999490,1751429453813,-460.0,0.00019262,2]
[368999491,1751429453828,-460.0,0.00019263,2]
[368999492,1751429453845,-358.84,0.00019263,2]
[368999493,1751429453859,-749.69,0.00019263,2]
[368999494,1751429453874,-460.0,0.00019263,2]
[368999495,1751429453889,-460.0,0.00019263,2]
[368999496,1751429453907,-460.0,0.00019263,2]
[368999497,1751429453923,-460.0,0.00019263,2]
[368999498,1751429453939,-460.0,0.00019263,2]
[368999499,1751429453957,-460.0,0.00019263,2]
[368999500,1751429453973,-460.0,0.00019263,2]
[368999501,1751429453989,-486.75,0.00019264,2]
[368999502,1751429454004,-1295.38,0.00019264,2]
[368999503,1751429454019,-1459.66,0.00019264,2]
[368999504,1751429454035,-460.0,0.00019264,2]
[368999505,1751429454048,-460.0,0.00019264,2]
[368999506,1751429454065,-460.0,0.00019264,2]
[368999507,1751429454083,-590.97,0.00019264,2]
[368999508,1751429454093,-500.0,0.00019288,2]
[368999509,1751429454105,-217.19185007,0.00019288,2]
[368999510,1751429454256,-305.31710854,0.00019288,2]
[368999511,1751429454278,-500.0,0.00019288,2]
[368999512,1751429454288,-500.0,0.00019288,2]
[368999513,1751429454298,-500.0,0.00019288,2]
[368999514,1751429454307,-152.81481507,0.00019288,2]
[368999515,1751429454316,-489.0,0.00019288,2]
[368999516,1751429454326,-500.0,0.00019315,2]
[368999517,1751429454335,-500.0,0.00019315,2]
[368999518,1751429454345,-356.13496559,0.00019315,2]
[368999519,1751429454354,-258.64031699,0.00019315,2]
[368999520,1751429454364,-151.0,0.00019329,2]
[368999521,1751429454375,-151.0,0.00019329,2]
[368999522,1751429454384,-151.0,0.00019329,2]
[368999523,1751429454396,-151.0,0.00019329,2]
[368999524,1751429454406,-151.0,0.00019329,2]
[368999525,1751429454416,-151.0,0.00019329,2]
[368999526,1751429454426,-151.0,0.00019329,2]
[368999527,1751429454436,-151.0,0.00019329,2]
[368999528,1751429454445,-212.341598,0.00019329,2]
[368999529,1751429454455,-212.341598,0.00019329,2]
[368999530,1751429454464,-151.0,0.00019329,2]
[368999531,1751429454473,-342.489569,0.00019329,2]
[368999532,1751429454483,-342.489569,0.00019329,2]
[368999533,1751429454492,-151.0,0.00019329,2]
[368999534,1751429454501,-151.0,0.00019329,2]
[368999535,1751429454511,-151.0,0.00019329,2]
[368999536,1751429454520,-151.0,0.00019329,2]
[368999537,1751429454530,-151.0,0.00019329,2]
[368999538,1751429454540,-265.125918,0.00019329,2]
[368999539,1751429454549,-151.0,0.00019329,2]
[368999540,1751429454559,-151.0,0.00019329,2]
[368999541,1751429454569,-265.125918,0.00019329,2]
[368999542,1751429454579,-151.0,0.00019329,2]
[368999543,1751429454589,-151.0,0.00019329,2]
[368999544,1751429454599,-259.011174,0.00019329,2]
[368999545,1751429454608,-259.011174,0.00019329,2]
[368999546,1751429454618,-151.0,0.00019329,2]
[368999547,1751429454628,-151.0,0.00019329,2]
[368999548,1751429454638,-48224.83153581,0.00019329,2]
[368999549,1751429454650,-518.06832643,0.00019342,2]
[368999550,1751429454660,-276.74938052,0.00019342,2]
[368999551,1751429454669,-522.74,0.00019359,2]
[368999552,1751429454679,-460.0,0.00019359,2]
[368999553,1751429454689,-1942.10806907,0.00019383,2]
[368999554,1751429454698,-366.4191338,0.00019397,2]
[368999555,1751429454708,-151.0,0.000194,2]
[368999556,1751429454718,-460.0,0.00019516,2]
[368999557,1751429454727,-1600.27589521,0.00019524,2]
[368999558,1751429454736,-636.07,0.00019535,2]
[368999559,1751429454746,-792.04,0.00019535,2]
[368999560,1751429454757,-460.0,0.00019535,2]
[368999561,1751429454767,-151.0,0.00019535,2]
[368999562,1751429454777,-151.0,0.00019535,2]
[368999563,1751429454787,-151.0,0.00019535,2]
[368999564,1751429454796,-460.0,0.00019535,2]